bitfinex/quotes_BTCUSD_20240715
["timestamp","ask_amount","ask_price","bid_price","bid_amount"]
[1721029416561,0.08105238,63150.0,63145.0,0.077433]
[1721029416562,0.0758,63149.0,63145.0,0.077433]
[1721029416784,0.16207791,63148.0,63129.0,0.5]
[1721029416983,0.0758,63149.0,63138.0,0.4863143]
[1721029417211,0.023,63148.0,63144.0,0.063439]
[1721029417378,0.023,63148.0,63136.0,0.5]
[1721029417618,0.023,63148.0,63139.0,0.063441]
[1721029417843,0.08105238,63140.0,63139.0,0.063441]
[1721029418059,0.001,63149.0,63139.0,0.563441]
[1721029418462,0.16215791,63148.0,63139.0,0.063441]
[1721029418666,0.08105238,63146.0,63139.0,0.063441]
[1721029418849,0.2897,63145.0,63132.0,0.5]
[1721029419050,0.16211791,63144.0,63135.0,0.063446]
[1721029419253,4e-05,63148.0,63138.0,0.11985364]
[1721029419540,4e-05,63148.0,63135.0,0.063446]
[1721029419541,0.16215791,63148.0,63139.0,0.014]
[1721029419693,0.023,63147.0,63135.0,0.063446]
[1721029419897,0.023,63147.0,63139.0,0.01]
[1721029420098,0.24317029,63146.0,63139.0,0.01]
[1721029420353,0.04910007,63148.0,63136.0,0.5]
[1721029420540,0.16211791,63147.0,63136.0,0.5]
[1721029420740,4e-05,63145.0,63139.0,0.011]
[1721029421518,0.24317029,63144.0,63135.0,0.063446]
[1721029421926,0.18511791,63143.0,63135.0,0.077446]
[1721029422130,0.26617029,63143.0,63135.0,0.077446]
[1721029422341,0.26617029,63143.0,63125.0,0.5]
[1721029422517,0.26617029,63143.0,63126.0,0.5]
[1721029422674,0.32667133,63143.0,63139.0,0.014]
[1721029422881,0.32667133,63143.0,63117.0,0.11985364]
[1721029422882,0.0801,63142.0,63122.0,0.5]
[1721029423066,0.18511791,63141.0,63136.0,0.01]
[1721029423492,0.18511791,63141.0,63135.0,0.014]
[1721029423692,0.08105238,63136.0,63121.0,0.4863143]
[1721029423895,0.08105238,63136.0,63128.0,0.063453]
[1721029423896,0.0665,63134.0,63128.0,0.063453]
[1721029424166,0.16211791,63133.0,63119.0,0.5]
[1721029424343,0.0490149,63141.0,63127.0,0.285137]
[1721029424543,0.21113281,63141.0,63126.0,0.506]
[1721029424696,0.16211791,63140.0,63126.0,0.506]
[1721029425664,0.16211791,63140.0,63139.0,0.012]
[1721029425895,0.18511791,63140.0,63139.0,0.012]
[1721029426026,0.18511791,63140.0,63126.0,0.006]
[1721029426227,0.023,63139.0,63126.0,0.006]
[1721029426436,0.023,63139.0,63126.0,0.02]
[1721029426437,0.16211791,63138.0,63126.0,0.02]
[1721029426640,0.16211791,63138.0,63126.0,0.006]
[1721029426641,0.023,63137.0,63126.0,0.006]
[1721029426891,0.16211791,63136.0,63126.0,0.006]
[1721029427031,0.16211791,63136.0,63123.0,0.11985364]
[1721029427032,0.023,63135.0,63123.0,0.11985364]
[1721029427231,0.18511791,63135.0,63122.0,0.563456]
[1721029427455,0.18511791,63135.0,63124.0,0.11985364]
[1721029428269,0.04933046,63139.0,63138.0,1.96020964]
[1721029428491,0.62600545,63162.0,63144.0,0.54744664]
[1721029428688,0.62600545,63162.0,63147.0,1.53247564]
[1721029428920,0.62600545,63162.0,63147.0,2.46751464]
[1721029429120,0.62600545,63162.0,63147.0,2.21330325]
[1721029429381,0.62600545,63162.0,63147.0,0.86237764]
[1721029429533,0.62600545,63162.0,63147.0,1.64100659]
[1721029429712,0.62600545,63162.0,63147.0,3.81422354]
[1721029429914,0.62600545,63162.0,63147.0,2.53521154]
[1721029430111,0.62600545,63162.0,63147.0,2.37542154]
[1721029430331,0.62600545,63162.0,63147.0,2.38942154]
[1721029430741,0.00104,63148.0,63147.0,2.10437254]
[1721029431125,4e-05,63148.0,63147.0,2.37541358]
[1721029432025,4e-05,63148.0,63147.0,4.82243658]
[1721029432232,4e-05,63148.0,63147.0,4.8769785]
[1721029432403,0.62600545,63162.0,63161.0,1.61730064]
[1721029432603,0.62600545,63162.0,63161.0,1.9108551]
[1721029432826,0.62600545,63162.0,63161.0,1.77941855]
[1721029433242,0.62600545,63162.0,63149.0,0.04923059]
[1721029433389,0.62600545,63162.0,63150.0,0.13145494]
[1721029433588,0.62600545,63162.0,63157.0,0.5]
[1721029433794,0.62600545,63162.0,63161.0,0.284985]
[1721029433995,0.62600545,63162.0,63161.0,0.427477]
[1721029434202,0.62600545,63162.0,63161.0,0.48733064]
[1721029434403,0.62600545,63162.0,63161.0,0.56133064]
[1721029434760,0.62600545,63162.0,63161.0,0.028]
[1721029434953,0.62700545,63162.0,63161.0,0.028]
[1721029435377,0.62700545,63162.0,63161.0,0.014]
[1721029435753,0.62700545,63162.0,63161.0,0.028]
[1721029436314,0.62600545,63162.0,63161.0,0.58397]
[1721029436525,0.62600545,63162.0,63161.0,0.57233064]
[1721029436734,0.62600545,63162.0,63161.0,0.025]
[1721029436956,0.62600545,63162.0,63161.0,0.28734564]
[1721029437549,0.62600545,63162.0,63161.0,0.57233064]
[1721029438546,0.62600545,63162.0,63161.0,0.28734564]
[1721029439068,0.62600545,63162.0,63161.0,0.14485364]
[1721029439446,0.62604545,63162.0,63161.0,0.27629336]
[1721029439646,0.62604545,63162.0,63161.0,0.81004855]
[1721029439857,0.62604545,63162.0,63161.0,1.2264742]
[1721029440079,0.62604545,63162.0,63161.0,0.9384122]
[1721029440368,0.62604545,63162.0,63161.0,0.65644059]
[1721029440568,0.62604545,63162.0,63161.0,0.63144059]
[1721029440775,0.62604545,63162.0,63161.0,0.64544059]
[1721029440974,0.62604545,63162.0,63161.0,0.63385364]
[1721029441176,0.62604545,63162.0,63161.0,1.22344855]
[1721029441330,0.62604545,63162.0,63161.0,0.61985364]
[1721029441530,0.62604545,63162.0,63161.0,0.5]
[1721029441729,0.62604545,63162.0,63161.0,0.514]
[1721029442137,0.62604545,63162.0,63155.0,0.2]
[1721029442379,0.62604545,63162.0,63156.0,0.11985364]
[1721029442586,0.62604545,63162.0,63161.0,0.014]
[1721029442825,0.62604545,63162.0,63143.0,0.00019064]
[1721029442826,0.72568999,63162.0,63143.0,0.00019064]
[1721029443038,0.2897,63150.0,63143.0,0.00019064]
[1721029443238,0.14626353,63149.0,63143.0,0.00019064]
[1721029443438,0.14626353,63149.0,63124.0,0.60616794]
[1721029443439,0.123,63148.0,63124.0,0.60616794]
[1721029443667,0.062,63132.0,63124.0,0.60616794]
[1721029443795,0.08105238,63143.0,63124.0,0.60616794]
[1721029444002,0.19889635,63148.0,63124.0,0.60616794]
[1721029444003,0.18511791,63142.0,63128.0,0.11985364]
[1721029444200,0.18511791,63142.0,63131.0,0.11985364]
[1721029444201,0.04976898,63137.0,63131.0,0.11985364]
[1721029444401,0.04976898,63137.0,63130.0,0.11985364]
[1721029444603,0.023,63142.0,63128.0,0.11985364]
[1721029444804,0.1,63148.0,63128.0,0.11985364]
[1721029444805,0.023,63147.0,63128.0,0.11985364]
[1721029445011,0.16211791,63146.0,63128.0,0.05985364]
[1721029445210,0.16211791,63146.0,63124.0,0.642575]
[1721029445211,0.10405238,63145.0,63124.0,0.5]
[1721029445414,0.08105238,63138.0,63122.0,0.063456]
[1721029445628,0.0805,63136.0,63122.0,0.063456]
[1721029445844,0.0805,63136.0,63128.0,0.005]
[1721029445845,0.16211791,63135.0,63128.0,0.005]
[1721029446052,0.023,63134.0,63128.0,0.005]
[1721029446260,0.16211791,63133.0,63122.0,0.063456]
[1721029446456,0.023,63132.0,63122.0,0.063456]
[1721029446619,0.023,63132.0,63114.0,0.5]
[1721029446620,0.16211791,63131.0,63114.0,0.5]
[1721029446816,0.0646,63123.0,63118.0,0.063464]
[1721029447046,0.0646,63123.0,63107.0,0.4863143]
[1721029447425,0.0646,63123.0,63108.0,0.06347]
[1721029447426,0.02606353,63122.0,63108.0,0.06347]
[1721029447556,0.00306353,63120.0,63097.0,0.16675173]
[1721029447755,0.18511791,63119.0,63103.0,0.60616794]
[1721029447980,0.00306353,63118.0,63104.0,0.61985364]
[1721029448152,0.18511791,63117.0,63108.0,0.11985364]
[1721029448359,0.18511791,63117.0,63106.0,0.11985364]
[1721029448581,0.18511791,63117.0,63108.0,0.11985364]
[1721029448983,0.18511791,63117.0,63107.0,0.001]
[1721029449189,0.08105238,63115.0,63107.0,0.001]
[1721029449347,0.16211791,63114.0,63107.0,0.001]
[1721029449550,0.1,63113.0,63107.0,0.001]
[1721029449778,0.18411791,63112.0,63107.0,0.001]
[1721029450133,0.18411791,63112.0,63102.0,0.11985364]
[1721029450471,0.1423,63116.0,63111.0,0.11985364]
[1721029450472,0.001,63115.0,63111.0,0.11985364]
[1721029450685,0.001,63115.0,63107.0,0.002]
[1721029450686,0.024,63115.0,63107.0,0.002]
[1721029450869,0.024,63115.0,63107.0,0.12185364]
[1721029450870,0.07354002,63115.0,63107.0,0.12185364]
[1721029451069,0.07354002,63115.0,63110.0,0.11985364]
[1721029451070,0.05054002,63115.0,63110.0,0.11985364]
[1721029451606,0.001,63115.0,63110.0,0.11985364]
[1721029451791,0.18511791,63115.0,63106.0,0.5]
[1721029451999,0.001,63112.0,63107.0,0.01]
[1721029452429,0.001,63112.0,63109.0,0.11985364]
[1721029452573,0.001,63112.0,63111.0,0.11985364]
[1721029452941,0.001,63112.0,63104.0,0.5]
[1721029453227,0.001,63112.0,63101.0,0.06348]
[1721029453411,0.16211791,63111.0,63101.0,0.06348]
[1721029453612,0.16211791,63111.0,63104.0,0.11985364]
[1721029453823,0.023,63110.0,63103.0,0.11985364]
[1721029454029,0.001,63112.0,63102.0,0.11985364]
[1721029454240,0.001,63112.0,63101.0,0.06348]
[1721029454447,0.001,63112.0,63103.0,0.11985364]
[1721029454646,0.001,63112.0,63101.0,0.06348]
[1721029454848,0.024,63115.0,63101.0,0.06348]
[1721029454849,0.16211791,63111.0,63101.0,0.06348]
[1721029455058,0.023,63110.0,63101.0,0.06348]
[1721029455263,0.18511791,63110.0,63106.0,0.001]
[1721029455684,0.18511791,63110.0,63101.0,0.06348]
[1721029455857,0.18511791,63110.0,63101.0,0.07148]
[1721029456060,0.18511791,63110.0,63101.0,0.06448]
[1721029456426,0.18511791,63110.0,63106.0,0.008]
[1721029456427,0.001,63110.0,63106.0,0.008]
[1721029456628,0.001,63110.0,63106.0,0.12785364]
[1721029456884,0.001,63110.0,63101.0,0.06448]
[1721029456885,0.023,63115.0,63104.0,0.11985364]
[1721029457057,0.16211791,63114.0,63104.0,0.11985364]
[1721029457387,0.023,63113.0,63101.0,0.06348]
[1721029457616,0.1266605,63116.0,63110.0,0.142607]
[1721029457819,0.1266605,63116.0,63108.0,0.285222]
[1721029457820,0.1266605,63116.0,63108.0,0.11985364]
[1721029457931,0.0767,63116.0,63107.0,0.11985364]
[1721029458169,0.0767,63116.0,63112.0,0.11985364]
[1721029458370,0.04960984,63121.0,63120.0,0.11985364]
[1721029458790,0.0628,63131.0,63122.0,0.11985364]
[1721029459020,0.0628,63131.0,63124.0,0.11985364]
[1721029459021,0.22491791,63131.0,63124.0,0.11985364]
[1721029459434,0.04951952,63133.0,63124.0,0.11985364]
[1721029460192,0.002,63131.0,63126.0,0.11985364]
[1721029460432,0.002,63131.0,63128.0,0.11985364]
[1721029461290,0.002,63131.0,63128.0,0.26241964]
[1721029461812,0.002,63131.0,63128.0,0.11985364]
[1721029462015,0.001,63131.0,63128.0,0.006]
[1721029462476,0.08105238,63130.0,63128.0,0.006]
[1721029462677,0.16255238,63129.0,63128.0,0.006]
[1721029462881,0.38847029,63129.0,63128.0,0.006]
[1721029463084,0.41147029,63129.0,63108.0,0.11985364]
[1721029463301,0.08105238,63122.0,63108.0,0.11985364]
[1721029463503,0.023,63121.0,63108.0,0.26246564]
[1721029463703,0.023,63121.0,63111.0,0.5]
[1721029464938,0.023,63121.0,63105.0,0.642618]
[1721029465138,0.023,63121.0,63105.0,0.5]
[1721029465139,0.08105238,63114.0,63105.0,0.5]
[1721029465415,0.16211791,63120.0,63111.0,0.006]
[1721029465664,0.023,63113.0,63111.0,0.006]
[1721029465879,0.023,63113.0,63101.0,0.06348]
[1721029465880,0.18511791,63113.0,63101.0,0.06348]
[1721029466410,0.023,63113.0,63105.0,0.11985364]
[1721029466610,0.023,63113.0,63106.0,0.11985364]
[1721029467247,0.024,63113.0,63106.0,0.11985364]
[1721029467572,0.024,63113.0,63105.0,0.007]
[1721029467573,0.023,63113.0,63105.0,0.007]
[1721029467716,0.00104,63121.0,63105.0,0.007]
[1721029467915,0.24317029,63120.0,63105.0,0.007]
[1721029468145,0.00104,63121.0,63105.0,0.507]
[1721029468361,0.16211791,63120.0,63105.0,0.5]
[1721029468880,0.16211791,63120.0,63105.0,0.004]
[1721029469014,0.00104,63113.0,63106.0,0.008]
[1721029469215,4e-05,63113.0,63103.0,0.26247664]
[1721029469444,0.30191791,63112.0,63101.0,0.06348]
[1721029469688,0.08105238,63111.0,63101.0,0.06348]
[1721029469924,0.08105238,63102.0,63077.0,0.30943345]
[1721029470148,0.0776,63094.0,63089.0,0.063491]
[1721029470358,0.07367786,63094.0,63089.0,0.063491]
[1721029470559,0.07367786,63094.0,63078.0,0.5]
[1721029470560,0.16211791,63093.0,63078.0,0.5]
[1721029470815,0.0622,63092.0,63087.0,0.063493]
[1721029471032,0.16211791,63091.0,63075.0,0.5]
[1721029471234,0.16211791,63091.0,63080.0,0.063496]
[1721029472487,0.16211791,63090.0,63069.0,0.5]
[1721029472638,0.16211791,63090.0,63080.0,0.001]
[1721029472639,0.00306353,63089.0,63080.0,0.001]
[1721029472853,0.16211791,63088.0,63080.0,0.001]
[1721029473054,0.16211791,63088.0,63080.0,0.004]
[1721029473283,0.16211791,63088.0,63077.0,0.063503]
[1721029474569,0.16211791,63087.0,63077.0,0.063503]
[1721029474743,0.16211791,63087.0,63070.0,0.142697]
[1721029474946,0.16211791,63087.0,63076.0,0.063503]
[1721029475402,0.16211791,63087.0,63080.0,0.006]
[1721029475632,0.1,63086.0,63080.0,0.001]
[1721029475852,0.16211791,63085.0,63080.0,0.001]
[1721029476102,0.16211791,63085.0,63074.0,0.063503]
[1721029476103,0.001,63087.0,63079.0,0.11985364]
[1721029476341,0.16518144,63091.0,63075.0,0.142686]
[1721029476575,0.16518144,63091.0,63076.0,0.003]
[1721029476576,0.18411591,63090.0,63076.0,0.003]
[1721029476793,0.001,63087.0,63080.0,0.006]
[1721029477056,0.16211791,63086.0,63074.0,0.063503]
[1721029477277,0.16211791,63086.0,63079.0,0.006]
[1721029478207,0.22235238,63085.0,63079.0,0.006]
[1721029478418,0.16211791,63084.0,63079.0,0.006]
[1721029478648,0.16211791,63084.0,63072.0,0.063507]
[1721029479083,0.16211791,63084.0,63080.0,0.005]
[1721029479310,0.16211791,63084.0,63079.0,0.003]
[1721029479532,0.16211791,63084.0,63072.0,0.063507]
[1721029479735,0.16211791,63084.0,63073.0,0.11985364]
[1721029479736,0.004,63084.0,63073.0,0.11985364]
[1721029479953,0.011,63084.0,63072.0,0.064507]
[1721029480425,0.011,63084.0,63075.0,0.11985364]
[1721029480426,0.015,63084.0,63075.0,0.11985364]
[1721029480599,0.007,63084.0,63073.0,0.26254364]
[1721029480841,0.007,63084.0,63073.0,0.11985364]
[1721029481012,0.19067385,63085.0,63077.0,0.11985364]
[1721029481231,0.35279176,63085.0,63073.0,0.11985364]
[1721029481580,0.35279176,63085.0,63077.0,0.11985364]
[1721029481732,0.35279176,63085.0,63076.0,0.11985364]
[1721029481932,0.35279176,63085.0,63075.0,0.11985364]
[1721029482260,0.35279176,63085.0,63072.0,0.063507]
[1721029482261,0.003,63084.0,63079.0,0.12076664]
[1721029482464,0.01,63084.0,63079.0,0.000913]
[1721029482686,0.007,63084.0,63079.0,0.000913]
[1721029482864,0.005,63085.0,63079.0,0.000913]
[1721029483020,0.10083,63092.0,63079.0,0.12076664]
[1721029483218,0.014,63085.0,63079.0,0.000913]
[1721029483599,0.005,63085.0,63079.0,0.000913]
[1721029483809,0.005,63085.0,63079.0,0.004913]
[1721029484009,0.16711791,63085.0,63079.0,0.004913]
[1721029485113,0.40418208,63084.0,63072.0,0.063507]
[1721029485273,0.40418208,63084.0,63067.0,0.009163]
[1721029485274,0.00306353,63083.0,63067.0,0.009163]
[1721029485481,0.16211791,63082.0,63079.0,0.003]
[1721029485638,0.10306353,63081.0,63079.0,0.003]
[1721029485839,0.16211791,63080.0,63079.0,0.003]
[1721029486043,0.26211791,63080.0,63079.0,0.003]
[1721029486246,0.26211791,63080.0,63067.0,0.009163]
[1721029486443,0.10306353,63079.0,63067.0,0.009163]
[1721029486647,0.16211791,63078.0,63067.0,0.009163]
[1721029486987,0.1,63077.0,63067.0,0.009163]
[1721029487183,0.16211791,63076.0,63067.0,0.010163]
[1721029487388,0.1,63075.0,63067.0,0.010163]
[1721029487590,0.16211791,63074.0,63067.0,0.010163]
[1721029488160,0.04913741,63080.0,63067.0,0.13001664]
[1721029488395,0.16211791,63079.0,63067.0,0.009163]
[1721029488602,0.16211791,63079.0,63067.0,0.12901664]
[1721029488603,0.1,63078.0,63067.0,0.12901664]
[1721029488806,0.107,63078.0,63069.0,0.11985364]
[1721029489011,0.007,63078.0,63069.0,0.11985364]
[1721029489219,0.007,63078.0,63067.0,0.010163]
[1721029489427,0.04913741,63080.0,63067.0,0.009163]
[1721029489676,0.009,63079.0,63067.0,0.010163]
[1721029489886,0.004,63078.0,63072.0,0.11985364]
[1721029490706,0.004,63078.0,63071.0,0.11985364]
[1721029490903,0.004,63078.0,63072.0,0.11985364]
[1721029491108,0.004,63078.0,63071.0,0.11985364]
[1721029491327,0.004,63078.0,63072.0,0.11985364]
[1721029491543,0.004,63078.0,63071.0,0.11985364]
[1721029491743,0.21125532,63080.0,63071.0,0.11985364]
[1721029492007,0.04913741,63080.0,63069.0,0.11985364]
[1721029492212,0.04913741,63080.0,63070.0,0.165697]
[1721029492426,0.16211791,63079.0,63068.0,0.5]
[1721029492581,0.04913741,63080.0,63072.0,0.004]
[1721029492987,0.05213741,63080.0,63072.0,0.004]
[1721029493194,0.05213741,63080.0,63073.0,0.11985364]
[1721029493423,0.04913741,63080.0,63072.0,0.004]
[1721029493630,0.04913741,63080.0,63069.0,0.11985364]
[1721029493820,0.05213741,63080.0,63073.0,0.11985364]
[1721029494027,0.05213741,63080.0,63072.0,0.11985364]
[1721029494233,0.05213741,63080.0,63068.0,0.54701429]
[1721029494234,0.05213741,63080.0,63073.0,0.11985364]
[1721029494397,0.05213741,63080.0,63075.0,0.11985364]
[1721029494612,0.05213741,63080.0,63076.0,0.11985364]
[1721029494779,0.003,63080.0,63076.0,0.11985364]
[1721029494977,0.003,63080.0,63075.0,0.26253964]
[1721029495182,0.1,63088.0,63075.0,0.11985364]
[1721029495402,0.16211791,63087.0,63073.0,0.17985364]
[1721029495614,0.16211791,63087.0,63073.0,0.32254464]
[1721029495615,0.003,63080.0,63073.0,0.32254464]
[1721029495789,0.003,63080.0,63075.0,0.11985364]
[1721029496039,0.16211791,63087.0,63075.0,0.11985364]
[1721029496246,0.00080923,63080.0,63077.0,0.11985364]
[1721029496478,0.105,63088.0,63073.0,0.06]
[1721029496694,0.00306353,63087.0,63076.0,0.26253664]
[1721029496959,0.00306353,63087.0,63079.0,0.11985364]
[1721029497165,0.19464638,63089.0,63077.0,0.142682]
[1721029497166,0.04964638,63089.0,63087.0,0.61985364]
[1721029497304,0.04964638,63089.0,63087.0,0.5]
[1721029497758,0.00083,63092.0,63087.0,0.5]
[1721029497989,0.00083,63092.0,63087.0,0.55985364]
[1721029498402,0.00083,63092.0,63088.0,0.13160488]
[1721029498605,0.00083,63092.0,63087.0,0.61985364]
[1721029498811,0.00083,63092.0,63089.0,0.11985364]
[1721029499024,0.00083,63092.0,63087.0,0.5]
[1721029499025,0.00083,63092.0,63087.0,0.61985364]
[1721029499400,0.00083,63092.0,63087.0,0.55985364]
[1721029499855,0.00183,63092.0,63087.0,0.57085364]
[1721029500057,0.00183,63092.0,63089.0,0.009]
[1721029500494,0.00183,63092.0,63091.0,0.11985364]
[1721029500495,0.00283,63092.0,63091.0,0.11985364]
[1721029500702,0.00183,63092.0,63087.0,0.514]
[1721029500905,0.00283,63092.0,63087.0,0.523]
[1721029501085,0.00283,63092.0,63087.0,0.023]
[1721029501325,0.16211791,63091.0,63087.0,0.023]
[1721029501743,0.16211791,63091.0,63087.0,0.009]
[1721029502165,0.16211791,63091.0,63089.0,0.01]
[1721029502375,0.00283,63092.0,63089.0,0.01]
[1721029502578,0.00283,63092.0,63087.0,0.009]
[1721029502779,0.001,63091.0,63087.0,0.01]
[1721029503112,0.00183,63092.0,63091.0,0.009]
[1721029503734,0.00083,63092.0,63079.0,0.04904102]
[1721029503933,0.001,63091.0,63087.0,0.009]
[1721029504166,0.16211791,63090.0,63087.0,0.009]
[1721029504511,0.16211791,63090.0,63083.0,0.1]
[1721029504651,0.16211791,63090.0,63079.0,0.04904102]
[1721029505279,0.16211791,63090.0,63087.0,0.01]
[1721029505830,0.16211791,63090.0,63079.0,0.04904102]
[1721029506046,0.1423,63089.0,63079.0,0.05904102]
[1721029506244,0.16211791,63088.0,63079.0,0.05904102]
[1721029506475,0.16211791,63088.0,63083.0,0.009]
[1721029506685,0.16211791,63088.0,63083.0,0.109]
[1721029506891,0.16211791,63088.0,63087.0,0.01]
[1721029508141,0.16311791,63088.0,63087.0,0.016]
[1721029508350,0.16311791,63088.0,63087.0,0.006]
[1721029508608,0.001,63088.0,63087.0,0.006]
[1721029508817,0.002,63088.0,63087.0,0.006]
[1721029509007,0.001,63088.0,63087.0,0.006]
[1721029509394,0.002,63088.0,63087.0,0.015]
[1721029509743,0.30821791,63088.0,63087.0,0.015]
[1721029510351,0.30721791,63088.0,63087.0,0.009]
[1721029510761,0.32121791,63088.0,63087.0,0.01]
[1721029511213,0.32121791,63088.0,63087.0,0.009]
[1721029511419,0.30721791,63088.0,63075.0,0.04985577]
[1721029511621,0.16211791,63087.0,63075.0,0.04985577]
[1721029513396,0.16511791,63087.0,63075.0,0.04985577]
[1721029514245,0.16511791,63087.0,63075.0,0.05085577]
[1721029514246,0.17111791,63087.0,63075.0,0.05085577]
[1721029514435,0.17111791,63087.0,63075.0,0.09811925]
[1721029514755,0.16211791,63087.0,63075.0,0.04985577]
[1721029515077,0.16811791,63087.0,63075.0,0.04985577]
[1721029515616,0.00306353,63086.0,63075.0,0.04985577]
[1721029515824,0.16211791,63085.0,63075.0,0.04985577]
[1721029516447,0.16211791,63085.0,63076.0,0.04734634]
[1721029516859,0.16211791,63085.0,63075.0,0.09720211]
[1721029517057,0.16211791,63085.0,63075.0,0.04985577]
[1721029517258,0.16511791,63085.0,63075.0,0.04985577]
[1721029517977,0.16211791,63085.0,63075.0,0.04985577]
[1721029518362,0.16311791,63085.0,63075.0,0.05085577]
[1721029518570,0.16306962,63085.0,63075.0,0.04985577]
[1721029518998,0.16306962,63085.0,63076.0,0.1]
[1721029519201,0.16306962,63085.0,63075.0,0.05285577]
[1721029519633,0.16306962,63085.0,63075.0,0.05685577]
[1721029519830,0.00306353,63084.0,63075.0,0.04985577]
[1721029520123,0.16211791,63083.0,63076.0,0.1]
[1721029520333,0.16211791,63083.0,63075.0,0.04985577]
[1721029520708,0.16211791,63083.0,63078.0,0.1]
[1721029520881,0.16211791,63083.0,63075.0,0.04985577]
[1721029521114,0.16211791,63083.0,63078.0,0.1]
[1721029521349,0.16211791,63083.0,63075.0,0.04985577]
[1721029521550,0.16211791,63083.0,63076.0,0.003]
[1721029521754,0.00306353,63082.0,63075.0,0.05085577]
[1721029521950,0.00306353,63082.0,63078.0,0.105]
[1721029521951,0.16211791,63081.0,63078.0,0.105]
[1721029522202,0.16211791,63081.0,63078.0,0.005]
[1721029522203,0.00306353,63080.0,63078.0,0.005]
[1721029522415,0.16211791,63079.0,63075.0,0.001]
[1721029522980,0.16211791,63079.0,63071.0,0.1]
[1721029523379,0.16211791,63079.0,63078.0,0.002]
[1721029523914,0.16211791,63079.0,63078.0,0.001]
[1721029524119,0.16311791,63079.0,63078.0,0.001]
[1721029524330,0.40581791,63079.0,63078.0,0.001]
[1721029524531,0.46996406,63079.0,63068.0,0.04926505]
[1721029524731,0.16211791,63077.0,63068.0,0.04926505]
[1721029524930,0.16414615,63076.0,63075.0,0.003]
[1721029525104,0.32626406,63076.0,63075.0,0.003]
[1721029525310,0.32626406,63076.0,63067.0,0.009163]
[1721029525311,0.22626406,63076.0,63067.0,0.009163]
[1721029525510,0.1427,63079.0,63067.0,0.009163]
[1721029525511,0.22512692,63075.0,63067.0,0.009163]
[1721029525713,0.16211791,63075.0,63067.0,0.009163]
[1721029526696,0.16211791,63070.0,63067.0,0.009163]
[1721029526922,0.1,63069.0,63067.0,0.009163]
[1721029527098,0.16211791,63068.0,63067.0,0.009163]
[1721029527295,0.16211791,63068.0,63067.0,0.013163]
[1721029527836,0.16211791,63068.0,63067.0,0.009163]
[1721029528530,0.6457297,63068.0,63067.0,0.010163]
[1721029528752,0.70923513,63068.0,63067.0,0.010163]
[1721029528898,0.70923513,63068.0,63067.0,0.018163]
[1721029529100,0.70923513,63068.0,63062.0,0.009163]
[1721029529101,0.20306353,63067.0,63062.0,0.009163]
[1721029529304,0.38057029,63063.0,63062.0,0.009163]
[1721029529482,0.66302334,63063.0,63062.0,0.009163]
[1721029530662,0.48602334,63063.0,63062.0,0.009163]
[1721029530881,0.48602334,63063.0,63062.0,0.010163]
[1721029531058,0.59220263,63063.0,63062.0,0.010163]
[1721029531715,0.48872981,63063.0,63062.0,0.010163]
[1721029531921,0.48872981,63063.0,63051.0,0.001913]
[1721029531922,0.1449,63056.0,63051.0,0.001913]
[1721029532133,0.16211791,63052.0,63051.0,0.001913]
[1721029532332,0.26211791,63052.0,63051.0,0.001913]
[1721029533610,0.40871791,63052.0,63051.0,0.001913]
[1721029533812,0.40971791,63052.0,63051.0,0.001913]
[1721029533941,0.63271791,63052.0,63051.0,0.001913]
[1721029534171,0.43271791,63052.0,63051.0,0.001913]
[1721029534642,0.43171791,63052.0,63051.0,0.001913]
[1721029535267,0.43071791,63052.0,63051.0,0.001913]
[1721029535433,0.55155905,63052.0,63051.0,0.001913]
[1721029535636,0.56355905,63052.0,63051.0,0.001913]
[1721029535836,0.55155905,63052.0,63051.0,0.001913]
[1721029536003,0.83261143,63052.0,63051.0,0.001913]
[1721029536203,0.74661143,63052.0,63051.0,0.001913]
[1721029536400,0.54471791,63052.0,63051.0,0.001913]
[1721029536613,0.55871791,63052.0,63051.0,0.001913]
[1721029537331,0.54471791,63052.0,63051.0,0.001913]
[1721029537737,0.74471791,63052.0,63051.0,0.001913]
[1721029538159,0.56148281,63052.0,63051.0,0.001913]
[1721029538363,0.76148281,63052.0,63051.0,0.001913]
[1721029538952,0.76148281,63052.0,63031.0,0.001]
[1721029538953,0.1,63045.0,63031.0,0.001]
[1721029539151,0.30301791,63038.0,63031.0,0.001]
[1721029539379,0.40301791,63038.0,63031.0,0.001]
[1721029539952,0.9090907,63038.0,63031.0,0.001]
[1721029540202,0.65791791,63038.0,63031.0,0.001]
[1721029540353,0.42601791,63038.0,63031.0,0.001]
[1721029540555,0.43101791,63038.0,63031.0,0.001]
[1721029540763,0.40801791,63038.0,63031.0,0.001]
[1721029541819,0.42201791,63038.0,63031.0,0.001]
[1721029542051,0.41705791,63038.0,63031.0,0.001]
[1721029542230,0.27615791,63038.0,63031.0,0.001]
[1721029542595,0.3260137,63038.0,63031.0,0.001]
[1721029542805,0.3120137,63038.0,63031.0,0.001]
[1721029543005,0.27615791,63038.0,63031.0,0.001]
[1721029543178,0.28815791,63038.0,63031.0,0.001]
[1721029543541,0.27415791,63038.0,63031.0,0.001]
[1721029543969,0.29715791,63038.0,63031.0,0.001]
[1721029544128,0.31115791,63038.0,63031.0,0.001]
[1721029544772,0.29715791,63038.0,63031.0,0.001]
[1721029545341,0.31115791,63038.0,63031.0,0.001]
[1721029545541,0.28815791,63038.0,63031.0,0.001]
[1721029545894,0.27615791,63038.0,63031.0,0.001]
[1721029546300,0.29015791,63038.0,63031.0,0.001]
[1721029546459,0.27615791,63038.0,63031.0,0.001]
[1721029546663,0.26215791,63038.0,63031.0,0.001]
[1721029546918,0.27415791,63038.0,63031.0,0.001]
[1721029547076,0.28815791,63038.0,63031.0,0.001]
[1721029547969,0.48815791,63038.0,63031.0,0.001]
[1721029548170,0.66552005,63038.0,63031.0,0.001]